[Event "Titled Tuesday Blitz March 01 Early 2022"]
[White "Lazavik, Denis"]
[Black "Risteski, Emil"]
[WhiteFideId "13515110"]
[BlackFideId "15005267"]
[WhiteElo "2436"]
[BlackElo "2070"]
[Result "1-0"]
[Round "05"]
[TimeControl "180+1"]
[Date "2022.03.01"]
[WhiteClock "0:00:03"]
[BlackClock "0:00:01"]

1. d4 {[%clk 0:03:00]}  d6 {[%clk 0:02:56]} 2. Nf3 {[%clk 0:02:55]}  Nf6 {[%clk 0:02:56]} 3. c4 {[%clk 0:02:55]}  Nbd7 {[%clk 0:02:56]} 4. Nc3 {[%clk 0:02:53]}  e5 {[%clk 0:02:56]} 5. e4 {[%clk 0:02:52]}  g6 {[%clk 0:02:56]} 6. g3 {[%clk 0:02:48]}  Bg7 {[%clk 0:02:56]} 7. Bg2 {[%clk 0:02:49]}  O-O {[%clk 0:02:56]} 8. O-O {[%clk 0:02:49]}  exd4 {[%clk 0:02:53]} 9. Nxd4 {[%clk 0:02:50]}  a6 {[%clk 0:02:54]} 10. h3 {[%clk 0:02:49]}  Re8 {[%clk 0:02:54]} 11. Be3 {[%clk 0:02:49]}  Rb8 {[%clk 0:02:55]} 12. a4 {[%clk 0:02:47]}  a5 {[%clk 0:02:54]} 13. b3 {[%clk 0:02:45]}  Ne5 {[%clk 0:02:50]} 14. Ra2 {[%clk 0:02:33]}  Nfd7 {[%clk 0:02:49]} 15. Rd2 {[%clk 0:02:31]}  Nc5 {[%clk 0:02:31]} 16. Ndb5 {[%clk 0:02:28]}  Ned7 {[%clk 0:02:19]} 17. Qc2 {[%clk 0:02:10]}  b6 {[%clk 0:02:16]} 18. f4 {[%clk 0:01:50]}  Bb7 {[%clk 0:02:14]} 19. Bd4 {[%clk 0:01:50]}  Bxd4+ {[%clk 0:02:02]} 20. Rxd4 {[%clk 0:01:51]}  Na6 {[%clk 0:02:00]} 21. Qd1 {[%clk 0:01:28]}  Qe7 {[%clk 0:01:34]} 22. Re1 {[%clk 0:01:26]}  Ndc5 {[%clk 0:01:30]} 23. Nd5 {[%clk 0:00:58]}  Bxd5 {[%clk 0:01:12]} 24. cxd5 {[%clk 0:00:59]}  Qf6 {[%clk 0:01:03]} 25. Re3 {[%clk 0:00:36]}  Re7 {[%clk 0:00:58]} 26. Na7 {[%clk 0:00:24]}  Nb4 {[%clk 0:00:57]} 27. Rxb4 {[%clk 0:00:23]}  axb4 {[%clk 0:00:58]} 28. Nc6 {[%clk 0:00:23]}  Rbe8 {[%clk 0:00:57]} 29. Nxe7+ {[%clk 0:00:22]}  Rxe7 {[%clk 0:00:52]} 30. Qd2 {[%clk 0:00:22]}  Qa1+ {[%clk 0:00:47]} 31. Kh2 {[%clk 0:00:22]}  h5 {[%clk 0:00:32]} 32. Qxb4 {[%clk 0:00:20]}  h4 {[%clk 0:00:30]} 33. gxh4 {[%clk 0:00:18]}  Qf6 {[%clk 0:00:29]} 34. Kg3 {[%clk 0:00:13]}  Kg7 {[%clk 0:00:25]} 35. Qd2 {[%clk 0:00:11]}  Re8 {[%clk 0:00:24]} 36. h5 {[%clk 0:00:07]}  gxh5 {[%clk 0:00:24]} 37. Qf2 {[%clk 0:00:06]}  Kh6 {[%clk 0:00:23]} 38. Kh2 {[%clk 0:00:06]}  Rg8 {[%clk 0:00:20]} 39. Qf3 {[%clk 0:00:07]}  Qd4 {[%clk 0:00:18]} 40. e5 {[%clk 0:00:06]}  dxe5 {[%clk 0:00:16]} 41. fxe5 {[%clk 0:00:07]}  Rg6 {[%clk 0:00:13]} 42. Re2 {[%clk 0:00:03]}  Kg7 {[%clk 0:00:11]} 43. e6 {[%clk 0:00:02]}  fxe6 {[%clk 0:00:10]} 44. dxe6 {[%clk 0:00:03]}  Qd6+ {[%clk 0:00:07]} 45. Kh1 {[%clk 0:00:03]}  Qe7 {[%clk 0:00:04]} 46. Qxh5 {[%clk 0:00:03]}  Nxb3 {[%clk 0:00:02]} 47. Qe5+ {[%clk 0:00:03]}  Kh6 {[%clk 0:00:01]} 48. Qf4+ {[%clk 0:00:03]}  Kg7 {[%clk 0:00:01]} 49. Qe5+ {[%clk 0:00:03]}  Kh6 {[%clk 0:00:01]} 50. Qe3+ {[%clk 0:00:03]}  Kg7 {[%clk 0:00:02]} 51. Qxb3 {[%clk 0:00:03]}  Rf6 {[%clk 0:00:01]} 52. Qc3 {[%clk 0:00:03]} 1-0


[Site "https://www.chess.com"]

[Event "Titled Tuesday Blitz March 01 Early 2022"]
[White "Li, Ben"]
[Black "Timofeev, Artyom"]
[WhiteFideId "2089980"]
[BlackFideId "4140419"]
[WhiteElo "2267"]
[BlackElo "2583"]
[Result "0-1"]
[Round "05"]
[TimeControl "180+1"]
[Date "2022.03.01"]
[WhiteClock "0:00:03"]
[BlackClock "0:00:17"]

1. d4 {[%clk 0:03:00]}  d5 {[%clk 0:02:59]} 2. Nf3 {[%clk 0:03:00]}  Nf6 {[%clk 0:02:58]} 3. c4 {[%clk 0:03:01]}  dxc4 {[%clk 0:02:58]} 4. Nc3 {[%clk 0:03:01]}  a6 {[%clk 0:02:58]} 5. e4 {[%clk 0:03:01]}  b5 {[%clk 0:02:57]} 6. e5 {[%clk 0:03:02]}  Nd5 {[%clk 0:02:57]} 7. a4 {[%clk 0:03:02]}  Bb7 {[%clk 0:02:52]} 8. e6 {[%clk 0:03:02]}  fxe6 {[%clk 0:02:46]} 9. Ng5 {[%clk 0:03:02]}  Nxc3 {[%clk 0:02:26]} 10. bxc3 {[%clk 0:03:03]}  Qd7 {[%clk 0:02:26]} 11. Qg4 {[%clk 0:02:25]}  e5 {[%clk 0:02:11]} 12. Qxd7+ {[%clk 0:02:22]}  Nxd7 {[%clk 0:02:06]} 13. Ne6 {[%clk 0:02:22]}  Kf7 {[%clk 0:01:58]} 14. d5 {[%clk 0:02:04]}  c6 {[%clk 0:01:33]} 15. dxc6 {[%clk 0:01:23]}  Bxc6 {[%clk 0:01:33]} 16. Nc7 {[%clk 0:01:22]}  Rc8 {[%clk 0:01:23]} 17. Nxa6 {[%clk 0:01:22]}  e6 {[%clk 0:01:19]} 18. axb5 {[%clk 0:01:03]}  Bxb5 {[%clk 0:01:17]} 19. Ra5 {[%clk 0:01:04]}  Bxa6 {[%clk 0:01:05]} 20. Rxa6 {[%clk 0:01:05]}  Be7 {[%clk 0:01:05]} 21. Ra7 {[%clk 0:00:40]}  Nb6 {[%clk 0:00:55]} 22. Be2 {[%clk 0:00:32]}  Nd5 {[%clk 0:00:52]} 23. Bd2 {[%clk 0:00:32]}  Ra8 {[%clk 0:00:50]} 24. Rxa8 {[%clk 0:00:30]}  Rxa8 {[%clk 0:00:49]} 25. O-O {[%clk 0:00:30]}  Ra2 {[%clk 0:00:49]} 26. Rd1 {[%clk 0:00:30]}  Bg5 {[%clk 0:00:43]} 27. Bxg5 {[%clk 0:00:19]}  Rxe2 {[%clk 0:00:43]} 28. Rc1 {[%clk 0:00:17]}  h6 {[%clk 0:00:33]} 29. Kf1 {[%clk 0:00:15]}  Ra2 {[%clk 0:00:32]} 30. Be3 {[%clk 0:00:14]}  Kg6 {[%clk 0:00:32]} 31. h3 {[%clk 0:00:12]}  Kf5 {[%clk 0:00:31]} 32. Bc5 {[%clk 0:00:10]}  h5 {[%clk 0:00:30]} 33. f3 {[%clk 0:00:10]}  h4 {[%clk 0:00:30]} 34. Bf2 {[%clk 0:00:09]}  g5 {[%clk 0:00:30]} 35. Be1 {[%clk 0:00:07]}  Nf4 {[%clk 0:00:29]} 36. Bf2 {[%clk 0:00:07]}  Rxf2+ {[%clk 0:00:28]} 37. Kg1 {[%clk 0:00:06]}  Rxg2+ {[%clk 0:00:28]} 38. Kh1 {[%clk 0:00:07]}  Rg3 {[%clk 0:00:28]} 39. Re1 {[%clk 0:00:06]}  Rxh3+ {[%clk 0:00:28]} 40. Kg1 {[%clk 0:00:07]}  Rxf3 {[%clk 0:00:27]} 41. Kh2 {[%clk 0:00:07]}  Rh3+ {[%clk 0:00:26]} 42. Kg1 {[%clk 0:00:07]}  Rxc3 {[%clk 0:00:26]} 43. Kh2 {[%clk 0:00:07]}  Rc2+ {[%clk 0:00:26]} 44. Kg1 {[%clk 0:00:08]}  Rc1 {[%clk 0:00:23]} 45. Kh2 {[%clk 0:00:07]}  Rc2+ {[%clk 0:00:21]} 46. Kh1 {[%clk 0:00:07]}  Nd3 {[%clk 0:00:20]} 47. Rf1+ {[%clk 0:00:06]}  Ke4 {[%clk 0:00:19]} 48. Kg1 {[%clk 0:00:05]}  g4 {[%clk 0:00:19]} 49. Rf8 {[%clk 0:00:03]}  Nf4 {[%clk 0:00:17]} 50. Kh1 {[%clk 0:00:03]}  Kf3 {[%clk 0:00:17]} 0-1


[Site "https://www.chess.com"]

[Event "Titled Tuesday Blitz March 01 Early 2022"]
[White "Maltsevskaya, Aleksandra"]
[Black "Horak, Martin"]
[WhiteFideId "24174041"]
[BlackFideId "367095"]
[WhiteElo "2283"]
[BlackElo "1997"]
[Result "1-0"]
[Round "05"]
[TimeControl "180+1"]
[Date "2022.03.01"]
[WhiteClock "0:01:12"]
[BlackClock "0:00:17"]

1. Nf3 {[%clk 0:03:00]}  c5 {[%clk 0:02:53]} 2. g3 {[%clk 0:03:01]}  Nc6 {[%clk 0:02:52]} 3. Bg2 {[%clk 0:03:01]}  g6 {[%clk 0:02:52]} 4. d3 {[%clk 0:03:02]}  Bg7 {[%clk 0:02:50]} 5. O-O {[%clk 0:03:03]}  Nf6 {[%clk 0:02:44]} 6. Nbd2 {[%clk 0:03:03]}  O-O {[%clk 0:02:43]} 7. e4 {[%clk 0:03:04]}  d6 {[%clk 0:02:34]} 8. h3 {[%clk 0:03:04]}  Rb8 {[%clk 0:02:33]} 9. a4 {[%clk 0:03:05]}  a6 {[%clk 0:02:32]} 10. Re1 {[%clk 0:03:02]}  Nd7 {[%clk 0:02:26]} 11. c3 {[%clk 0:02:58]}  b5 {[%clk 0:02:24]} 12. axb5 {[%clk 0:02:59]}  axb5 {[%clk 0:02:25]} 13. Nb3 {[%clk 0:02:54]}  Nde5 {[%clk 0:02:17]} 14. d4 {[%clk 0:02:52]}  cxd4 {[%clk 0:02:15]} 15. Nbxd4 {[%clk 0:02:49]}  Nxd4 {[%clk 0:02:10]} 16. Nxd4 {[%clk 0:02:49]}  Bd7 {[%clk 0:02:05]} 17. b3 {[%clk 0:02:43]}  Qc7 {[%clk 0:01:51]} 18. Bb2 {[%clk 0:02:39]}  Rfc8 {[%clk 0:01:48]} 19. Kh2 {[%clk 0:02:36]}  Nc6 {[%clk 0:01:46]} 20. Qd2 {[%clk 0:02:24]}  Nxd4 {[%clk 0:01:41]} 21. cxd4 {[%clk 0:02:25]}  Qc2 {[%clk 0:01:39]} 22. Re2 {[%clk 0:02:25]}  Qxb3 {[%clk 0:01:28]} 23. Ra7 {[%clk 0:02:19]}  Rd8 {[%clk 0:01:14]} 24. e5 {[%clk 0:02:02]}  dxe5 {[%clk 0:01:09]} 25. d5 {[%clk 0:02:02]}  Be6 {[%clk 0:00:54]} 26. Bxe5 {[%clk 0:01:52]}  Bxe5 {[%clk 0:00:36]} 27. Rxe5 {[%clk 0:01:53]}  Rd6 {[%clk 0:00:24]} 28. Rxe7 {[%clk 0:01:29]}  Rbd8 {[%clk 0:00:21]} 29. Qh6 {[%clk 0:01:14]}  Rxd5 {[%clk 0:00:16]} 30. Bxd5 {[%clk 0:01:12]}  Bxd5 {[%clk 0:00:17]} 31. Re8+ {[%clk 0:01:12]} 1-0


[Site "https://www.chess.com"]

[Event "Titled Tuesday Blitz March 01 Early 2022"]
[White "Matveeva, Olga"]
[Black "Di Nicolantonio, Lucas"]
[WhiteFideId "24107018"]
[BlackFideId "680460"]
[WhiteElo "2083"]
[BlackElo "2381"]
[Result "0-1"]
[Round "05"]
[TimeControl "180+1"]
[Date "2022.03.01"]
[WhiteClock "0:00:36"]
[BlackClock "0:00:23"]

1. d4 {[%clk 0:03:00]}  Nf6 {[%clk 0:02:54]} 2. c4 {[%clk 0:03:00]}  e6 {[%clk 0:02:51]} 3. g3 {[%clk 0:03:00]}  d5 {[%clk 0:02:51]} 4. Nf3 {[%clk 0:03:00]}  dxc4 {[%clk 0:02:49]} 5. Bg2 {[%clk 0:02:59]}  Nc6 {[%clk 0:02:49]} 6. O-O {[%clk 0:02:53]}  Rb8 {[%clk 0:02:49]} 7. e3 {[%clk 0:02:48]}  Be7 {[%clk 0:02:45]} 8. Nfd2 {[%clk 0:02:47]}  e5 {[%clk 0:02:45]} 9. Bxc6+ {[%clk 0:02:38]}  bxc6 {[%clk 0:02:46]} 10. dxe5 {[%clk 0:02:38]}  Nd5 {[%clk 0:02:37]} 11. Nxc4 {[%clk 0:02:36]}  h5 {[%clk 0:02:30]} 12. Qc2 {[%clk 0:02:29]}  Be6 {[%clk 0:02:25]} 13. Nbd2 {[%clk 0:02:25]}  h4 {[%clk 0:02:21]} 14. Nf3 {[%clk 0:02:18]}  Nb4 {[%clk 0:02:10]} 15. Qe4 {[%clk 0:02:11]}  hxg3 {[%clk 0:01:48]} 16. fxg3 {[%clk 0:02:04]}  Qd5 {[%clk 0:01:35]} 17. Ncd2 {[%clk 0:01:17]}  g6 {[%clk 0:01:05]} 18. a3 {[%clk 0:01:13]}  Nd3 {[%clk 0:01:05]} 19. b4 {[%clk 0:01:07]}  Bf5 {[%clk 0:00:51]} 20. Qxd5 {[%clk 0:01:06]}  cxd5 {[%clk 0:00:52]} 21. Nb3 {[%clk 0:00:55]}  Be4 {[%clk 0:00:36]} 22. Nbd4 {[%clk 0:00:53]}  Rb6 {[%clk 0:00:32]} 23. Bd2 {[%clk 0:00:51]}  g5 {[%clk 0:00:29]} 24. e6 {[%clk 0:00:36]}  fxe6 {[%clk 0:00:24]} 25. Ne5 {[%clk 0:00:36]}  Nxe5 {[%clk 0:00:23]} 0-1


[Site "https://www.chess.com"]

[Event "Titled Tuesday Blitz March 01 Early 2022"]
[White "Maung, Maung Kyaw Zaw Hein"]
[Black "Janaszak, Dawid"]
[WhiteFideId "13001698"]
[BlackFideId "1119206"]
[WhiteElo "1785"]
[BlackElo "2199"]
[Result "0-1"]
[Round "05"]
[TimeControl "180+1"]
[Date "2022.03.01"]
[WhiteClock "0:00:01"]
[BlackClock "0:00:19"]

1. Nf3 {[%clk 0:02:59]}  e6 {[%clk 0:02:58]} 2. c4 {[%clk 0:02:59]}  f5 {[%clk 0:02:58]} 3. Nc3 {[%clk 0:02:57]}  Nf6 {[%clk 0:02:59]} 4. g3 {[%clk 0:02:57]}  Be7 {[%clk 0:02:58]} 5. Bg2 {[%clk 0:02:57]}  O-O {[%clk 0:02:58]} 6. O-O {[%clk 0:02:58]}  Qe8 {[%clk 0:02:59]} 7. b3 {[%clk 0:02:58]}  Qh5 {[%clk 0:02:56]} 8. Bb2 {[%clk 0:02:57]}  d6 {[%clk 0:02:54]} 9. d4 {[%clk 0:02:55]}  Ne4 {[%clk 0:02:49]} 10. Qc2 {[%clk 0:02:46]}  Nxc3 {[%clk 0:02:44]} 11. Bxc3 {[%clk 0:02:41]}  Nd7 {[%clk 0:02:43]} 12. Rad1 {[%clk 0:02:39]}  Nf6 {[%clk 0:02:42]} 13. Rfe1 {[%clk 0:02:33]}  Ne4 {[%clk 0:02:39]} 14. Bb2 {[%clk 0:02:31]}  c6 {[%clk 0:02:31]} 15. Nd2 {[%clk 0:02:13]}  d5 {[%clk 0:02:31]} 16. Nxe4 {[%clk 0:01:55]}  fxe4 {[%clk 0:02:31]} 17. f3 {[%clk 0:01:53]}  Bg5 {[%clk 0:02:07]} 18. Rf1 {[%clk 0:01:12]}  exf3 {[%clk 0:01:57]} 19. exf3 {[%clk 0:01:10]}  Bd7 {[%clk 0:01:53]} 20. f4 {[%clk 0:01:10]}  Bf6 {[%clk 0:01:49]} 21. Rfe1 {[%clk 0:01:07]}  Rae8 {[%clk 0:01:45]} 22. Re2 {[%clk 0:01:01]}  e5 {[%clk 0:01:37]} 23. dxe5 {[%clk 0:00:56]}  Bg4 {[%clk 0:01:37]} 24. Red2 {[%clk 0:00:46]}  Bxd1 {[%clk 0:01:36]} 25. Rxd1 {[%clk 0:00:46]}  Bd8 {[%clk 0:01:35]} 26. cxd5 {[%clk 0:00:45]}  Bb6+ {[%clk 0:01:35]} 27. Kh1 {[%clk 0:00:45]}  cxd5 {[%clk 0:01:34]} 28. Bxd5+ {[%clk 0:00:45]}  Kh8 {[%clk 0:01:35]} 29. Bxb7 {[%clk 0:00:34]}  Rd8 {[%clk 0:01:32]} 30. Bd5 {[%clk 0:00:29]}  Rc8 {[%clk 0:01:21]} 31. Qd2 {[%clk 0:00:21]}  Rfd8 {[%clk 0:01:21]} 32. Ba3 {[%clk 0:00:20]}  Be3 {[%clk 0:01:07]} 33. Qd3 {[%clk 0:00:19]}  Bc5 {[%clk 0:01:00]} 34. Bb2 {[%clk 0:00:09]}  Bf2 {[%clk 0:00:46]} 35. Kg2 {[%clk 0:00:08]}  Bb6 {[%clk 0:00:43]} 36. Rd2 {[%clk 0:00:06]}  Qh6 {[%clk 0:00:39]} 37. Ba3 {[%clk 0:00:05]}  Bc5 {[%clk 0:00:35]} 38. Bxc5 {[%clk 0:00:05]}  Rxc5 {[%clk 0:00:36]} 39. Qe4 {[%clk 0:00:05]}  Qb6 {[%clk 0:00:24]} 40. e6 {[%clk 0:00:04]}  Qd6 {[%clk 0:00:20]} 41. e7 {[%clk 0:00:04]}  Re8 {[%clk 0:00:21]} 42. Re2 {[%clk 0:00:01]}  Rxd5 {[%clk 0:00:20]} 43. f5 {[%clk 0:00:01]}  Rd2 {[%clk 0:00:19]} 0-1


[Site "https://www.chess.com"]

[Event "Titled Tuesday Blitz March 01 Early 2022"]
[White "Mirzoev, Azer"]
[Black "Sarana, Alexey"]
[WhiteFideId "13400304"]
[BlackFideId "24133795"]
[WhiteElo "2525"]
[BlackElo "2665"]
[Result "0-1"]
[Round "05"]
[TimeControl "180+1"]
[Date "2022.03.01"]
[WhiteClock "0:00:01"]
[BlackClock "0:00:21"]

1. d4 {[%clk 0:03:00]}  Nf6 {[%clk 0:03:00]} 2. Nf3 {[%clk 0:03:00]}  d5 {[%clk 0:03:00]} 3. Bf4 {[%clk 0:03:00]}  c5 {[%clk 0:03:00]} 4. c3 {[%clk 0:02:59]}  Nc6 {[%clk 0:02:57]} 5. e3 {[%clk 0:02:59]}  Qb6 {[%clk 0:02:57]} 6. Qc2 {[%clk 0:02:58]}  g6 {[%clk 0:02:56]} 7. Nbd2 {[%clk 0:02:58]}  Bg7 {[%clk 0:02:57]} 8. h3 {[%clk 0:02:57]}  O-O {[%clk 0:02:56]} 9. Be2 {[%clk 0:02:56]}  Bf5 {[%clk 0:02:56]} 10. Qb3 {[%clk 0:02:56]}  c4 {[%clk 0:02:56]} 11. Qxb6 {[%clk 0:02:53]}  axb6 {[%clk 0:02:57]} 12. O-O {[%clk 0:02:48]}  b5 {[%clk 0:02:57]} 13. a3 {[%clk 0:02:48]}  Nd7 {[%clk 0:02:57]} 14. g4 {[%clk 0:02:46]}  Be6 {[%clk 0:02:55]} 15. Ng5 {[%clk 0:02:45]}  Nb6 {[%clk 0:02:55]} 16. Nxe6 {[%clk 0:02:44]}  fxe6 {[%clk 0:02:56]} 17. Rab1 {[%clk 0:02:40]}  e5 {[%clk 0:02:55]} 18. Bg3 {[%clk 0:02:31]}  exd4 {[%clk 0:02:53]} 19. exd4 {[%clk 0:02:31]}  e5 {[%clk 0:02:53]} 20. dxe5 {[%clk 0:02:28]}  Nxe5 {[%clk 0:02:51]} 21. Rfd1 {[%clk 0:02:25]}  Nc6 {[%clk 0:02:23]} 22. Nf3 {[%clk 0:02:09]}  Rf7 {[%clk 0:01:51]} 23. Kf1 {[%clk 0:01:33]}  Raf8 {[%clk 0:01:49]} 24. Kg2 {[%clk 0:01:33]}  Re8 {[%clk 0:01:48]} 25. Bf1 {[%clk 0:01:32]}  Rd7 {[%clk 0:01:39]} 26. Re1 {[%clk 0:01:23]}  Red8 {[%clk 0:01:29]} 27. Bh4 {[%clk 0:01:17]}  Rf8 {[%clk 0:01:28]} 28. Rbd1 {[%clk 0:01:16]}  Na4 {[%clk 0:01:22]} 29. Re2 {[%clk 0:01:11]}  Bxc3 {[%clk 0:01:06]} 30. bxc3 {[%clk 0:01:04]}  Nxc3 {[%clk 0:01:07]} 31. Rdd2 {[%clk 0:01:05]}  Nxe2 {[%clk 0:01:05]} 32. Bxe2 {[%clk 0:01:05]}  d4 {[%clk 0:01:05]} 33. Rb2 {[%clk 0:00:35]}  d3 {[%clk 0:01:04]} 34. Bd1 {[%clk 0:00:33]}  c3 {[%clk 0:01:04]} 35. Rxb5 {[%clk 0:00:31]}  c2 {[%clk 0:01:02]} 36. Bxc2 {[%clk 0:00:32]}  dxc2 {[%clk 0:01:03]} 37. Rc5 {[%clk 0:00:32]}  Rc7 {[%clk 0:00:46]} 38. Ne1 {[%clk 0:00:22]}  Rd7 {[%clk 0:00:35]} 39. Nxc2 {[%clk 0:00:20]}  Rd3 {[%clk 0:00:33]} 40. Nb4 {[%clk 0:00:18]}  Nxb4 {[%clk 0:00:28]} 41. axb4 {[%clk 0:00:19]}  h6 {[%clk 0:00:28]} 42. Bg3 {[%clk 0:00:18]}  Rd7 {[%clk 0:00:23]} 43. b5 {[%clk 0:00:14]}  Rf6 {[%clk 0:00:22]} 44. h4 {[%clk 0:00:12]}  Kf7 {[%clk 0:00:22]} 45. g5 {[%clk 0:00:11]}  Rf5 {[%clk 0:00:20]} 46. Rxf5+ {[%clk 0:00:09]}  gxf5 {[%clk 0:00:21]} 47. gxh6 {[%clk 0:00:10]}  Kg6 {[%clk 0:00:21]} 48. Bf4 {[%clk 0:00:10]}  Rd4 {[%clk 0:00:21]} 49. Be3 {[%clk 0:00:09]}  Rxh4 {[%clk 0:00:21]} 50. b6 {[%clk 0:00:09]}  f4 {[%clk 0:00:20]} 51. Bd4 {[%clk 0:00:07]}  Rxh6 {[%clk 0:00:20]} 52. Kf3 {[%clk 0:00:07]}  Kf5 {[%clk 0:00:21]} 53. Bc5 {[%clk 0:00:06]}  Rh3+ {[%clk 0:00:21]} 54. Ke2 {[%clk 0:00:06]}  Rc3 {[%clk 0:00:21]} 55. Bd4 {[%clk 0:00:06]}  Rb3 {[%clk 0:00:22]} 56. f3 {[%clk 0:00:06]}  Ke6 {[%clk 0:00:22]} 57. Bf2 {[%clk 0:00:06]}  Kd5 {[%clk 0:00:20]} 58. Bg1 {[%clk 0:00:06]}  Rb1 {[%clk 0:00:20]} 59. Bf2 {[%clk 0:00:05]}  Rb2+ {[%clk 0:00:20]} 60. Kf1 {[%clk 0:00:05]}  Kc4 {[%clk 0:00:20]} 61. Bg1 {[%clk 0:00:05]}  Kd3 {[%clk 0:00:20]} 62. Bf2 {[%clk 0:00:04]}  Rb1+ {[%clk 0:00:20]} 63. Kg2 {[%clk 0:00:05]}  Ke2 {[%clk 0:00:21]} 64. Bd4 {[%clk 0:00:05]}  Rb3 {[%clk 0:00:21]} 65. Be5 {[%clk 0:00:05]}  Rxf3 {[%clk 0:00:22]} 66. Bc7 {[%clk 0:00:05]}  Rg3+ {[%clk 0:00:22]} 67. Kh2 {[%clk 0:00:04]}  Kf3 {[%clk 0:00:23]} 68. Kh1 {[%clk 0:00:02]}  Rg6 {[%clk 0:00:21]} 69. Bb8 {[%clk 0:00:01]}  Rh6+ {[%clk 0:00:21]} 70. Kg1 {[%clk 0:00:01]}  Rh7 {[%clk 0:00:21]} 71. Bc7 {[%clk 0:00:01]}  Rh6 {[%clk 0:00:21]} 72. Bb8 {[%clk 0:00:01]}  Rxb6 {[%clk 0:00:21]} 0-1


[Site "https://www.chess.com"]

[Event "Titled Tuesday Blitz March 01 Early 2022"]
[White "Murzin, Volodar"]
[Black "Dubov, Daniil"]
[WhiteFideId "44155573"]
[BlackFideId "24126055"]
[WhiteElo "2585"]
[BlackElo "2791"]
[Result "1-0"]
[Round "05"]
[TimeControl "180+1"]
[Date "2022.03.01"]
[WhiteClock "0:00:12"]
[BlackClock "0:00:03"]

1. e4 {[%clk 0:03:00]}  g6 {[%clk 0:02:59]} 2. Nf3 {[%clk 0:03:00]}  Bg7 {[%clk 0:03:00]} 3. d4 {[%clk 0:03:00]}  d6 {[%clk 0:03:00]} 4. Bc4 {[%clk 0:03:00]}  e6 {[%clk 0:02:59]} 5. O-O {[%clk 0:03:00]}  Ne7 {[%clk 0:03:00]} 6. Nbd2 {[%clk 0:03:00]}  O-O {[%clk 0:02:59]} 7. Re1 {[%clk 0:03:00]}  Nbc6 {[%clk 0:02:55]} 8. c3 {[%clk 0:03:01]}  e5 {[%clk 0:02:55]} 9. dxe5 {[%clk 0:02:52]}  Nxe5 {[%clk 0:02:55]} 10. Nxe5 {[%clk 0:02:47]}  Bxe5 {[%clk 0:02:53]} 11. Nf3 {[%clk 0:02:46]}  Bg7 {[%clk 0:02:53]} 12. Bg5 {[%clk 0:02:42]}  h6 {[%clk 0:02:52]} 13. Bh4 {[%clk 0:02:40]}  Be6 {[%clk 0:02:29]} 14. Bxe6 {[%clk 0:02:26]}  fxe6 {[%clk 0:02:30]} 15. e5 {[%clk 0:02:24]}  d5 {[%clk 0:02:06]} 16. Nd4 {[%clk 0:02:22]}  Qd7 {[%clk 0:02:06]} 17. Bxe7 {[%clk 0:02:15]}  Qxe7 {[%clk 0:02:07]} 18. Qg4 {[%clk 0:02:15]}  Qf7 {[%clk 0:01:32]} 19. Nxe6 {[%clk 0:01:51]}  h5 {[%clk 0:01:21]} 20. Qh3 {[%clk 0:01:50]}  Qxf2+ {[%clk 0:01:20]} 21. Kh1 {[%clk 0:01:50]}  Rf5 {[%clk 0:01:14]} 22. Nd4 {[%clk 0:01:19]}  Rf4 {[%clk 0:00:57]} 23. Qe6+ {[%clk 0:01:14]}  Kh7 {[%clk 0:00:56]} 24. Qxd5 {[%clk 0:01:10]}  c6 {[%clk 0:00:51]} 25. Qd6 {[%clk 0:00:55]}  Raf8 {[%clk 0:00:45]} 26. g3 {[%clk 0:00:51]}  Rg4 {[%clk 0:00:12]} 27. Re2 {[%clk 0:00:23]}  Qf7 {[%clk 0:00:12]} 28. e6 {[%clk 0:00:23]}  Qf6 {[%clk 0:00:12]} 29. Qc7 {[%clk 0:00:15]}  h4 {[%clk 0:00:06]} 30. e7 {[%clk 0:00:13]}  Re8 {[%clk 0:00:06]} 31. Qd7 {[%clk 0:00:12]}  Rxd4 {[%clk 0:00:06]} 32. cxd4 {[%clk 0:00:10]}  Qf3+ {[%clk 0:00:05]} 33. Rg2 {[%clk 0:00:11]}  Rxe7 {[%clk 0:00:03]} 34. Qxe7 {[%clk 0:00:11]}  h3 {[%clk 0:00:03]} 35. Qh4+ {[%clk 0:00:12]} 1-0


[Site "https://www.chess.com"]

[Event "Titled Tuesday Blitz March 01 Early 2022"]
[White "Muzzi, Eduardo"]
[Black "Dolzhykova, Kateryna"]
[WhiteFideId "3001253"]
[BlackFideId "14113414"]
[WhiteElo "1932"]
[BlackElo "2165"]
[Result "0-1"]
[Round "05"]
[TimeControl "180+1"]
[Date "2022.03.01"]
[WhiteClock "0:00:11"]
[BlackClock "0:01:44"]

1. e4 {[%clk 0:03:00]}  c5 {[%clk 0:02:52]} 2. Nf3 {[%clk 0:02:56]}  Nc6 {[%clk 0:02:51]} 3. d4 {[%clk 0:02:34]}  cxd4 {[%clk 0:02:47]} 4. Nxd4 {[%clk 0:02:34]}  Nf6 {[%clk 0:02:47]} 5. Nc3 {[%clk 0:02:31]}  e5 {[%clk 0:02:46]} 6. Ndb5 {[%clk 0:02:29]}  d6 {[%clk 0:02:46]} 7. Nd5 {[%clk 0:02:20]}  Nxd5 {[%clk 0:02:46]} 8. exd5 {[%clk 0:02:20]}  Nb8 {[%clk 0:02:46]} 9. a4 {[%clk 0:02:14]}  g6 {[%clk 0:02:34]} 10. Bd3 {[%clk 0:02:13]}  Bg7 {[%clk 0:02:34]} 11. O-O {[%clk 0:02:12]}  O-O {[%clk 0:02:34]} 12. c3 {[%clk 0:02:11]}  f5 {[%clk 0:02:33]} 13. Be3 {[%clk 0:02:05]}  e4 {[%clk 0:02:27]} 14. Be2 {[%clk 0:02:03]}  f4 {[%clk 0:02:27]} 15. Bd4 {[%clk 0:02:03]}  f3 {[%clk 0:02:27]} 16. gxf3 {[%clk 0:02:00]}  Bh3 {[%clk 0:02:27]} 17. fxe4 {[%clk 0:01:50]}  Qg5+ {[%clk 0:02:25]} 18. Bg4 {[%clk 0:01:40]}  Bxg4 {[%clk 0:02:25]} 19. Qc1 {[%clk 0:01:40]}  Qh5 {[%clk 0:01:52]} 20. f4 {[%clk 0:00:52]}  Bf3 {[%clk 0:01:50]} 21. Qe1 {[%clk 0:00:22]}  Rxf4 {[%clk 0:01:46]} 22. Rxf3 {[%clk 0:00:12]}  Qxf3 {[%clk 0:01:45]} 23. Nc7 {[%clk 0:00:11]}  Rg4+ {[%clk 0:01:44]} 0-1


[Site "https://www.chess.com"]